bitfinex/quotes_BTCUSD_20251011
["timestamp","ask_amount","ask_price","bid_price","bid_amount"]
[1760221949491,5.53490821,111230.0,111220.0,0.00108934]
[1760221950291,5.5834313,111230.0,111220.0,0.00108934]
[1760221950512,5.61013656,111230.0,111220.0,0.00108934]
[1760221950866,5.5834313,111230.0,111220.0,0.00108934]
[1760221950998,5.58343115,111230.0,111220.0,0.00108934]
[1760221951427,5.55108522,111230.0,111220.0,0.00108934]
[1760221951627,1.35581722,111230.0,111220.0,0.00108934]
[1760221951826,5.55108522,111230.0,111220.0,0.00108934]
[1760221952527,5.65108521,111230.0,111220.0,0.00108934]
[1760221952709,1.45581721,111230.0,111220.0,0.00108934]
[1760221952909,5.67779047,111230.0,111220.0,0.00108934]
[1760221953330,5.60256212,111230.0,111220.0,0.00108934]
[1760221953533,5.62582061,111230.0,111220.0,0.00108934]
[1760221953739,1.43155261,111230.0,111220.0,0.00108934]
[1760221953948,5.62682061,111230.0,111220.0,0.00108934]
[1760221954157,5.62882061,111230.0,111220.0,0.00108934]
[1760221954357,5.57835211,111230.0,111220.0,0.00108934]
[1760221954768,1.38408411,111230.0,111220.0,0.00108934]
[1760221954973,5.57935211,111230.0,111220.0,0.00108934]
[1760221955172,1.38408411,111230.0,111220.0,0.00108934]
[1760221955383,5.57935211,111230.0,111220.0,0.00108934]
[1760221955593,5.47935212,111230.0,111220.0,0.00108934]
[1760221955801,1.28408412,111230.0,111220.0,0.00108934]
[1760221956092,5.47935212,111230.0,111220.0,0.00108934]
[1760221956312,1.28408412,111230.0,111220.0,0.00108934]
[1760221956533,5.47935212,111230.0,111220.0,0.00108934]
[1760221956647,5.57935211,111230.0,111220.0,0.00108934]
[1760221957283,1.38408411,111230.0,111220.0,0.00108934]
[1760221957489,5.57935211,111230.0,111220.0,0.00108934]
[1760221959089,5.47935212,111230.0,111220.0,0.00108934]
[1760221959386,5.57935211,111230.0,111220.0,0.00108934]
[1760221959527,1.38408411,111230.0,111220.0,0.00108934]
[1760221959734,5.57935211,111230.0,111220.0,0.00108934]
[1760221960790,1.38408411,111230.0,111220.0,0.00108934]
[1760221960967,5.57935211,111230.0,111220.0,0.00108934]
[1760221961178,5.57936773,111230.0,111220.0,0.00108934]
[1760221962828,5.47936774,111230.0,111220.0,0.00108934]
[1760221963202,5.57936773,111230.0,111220.0,0.00108934]
[1760221963418,1.38409973,111230.0,111220.0,0.00108934]
[1760221963624,5.47936774,111230.0,111220.0,0.00108934]
[1760221964200,5.57936773,111230.0,111220.0,0.00108934]
[1760221964425,1.28409974,111230.0,111220.0,0.00108934]
[1760221964621,5.47936774,111230.0,111220.0,0.00108934]
[1760221965812,5.57936773,111230.0,111220.0,0.00108934]
[1760221966612,1.38410027,111230.0,111220.0,0.00108934]
[1760221966831,5.57936827,111230.0,111220.0,0.00108934]
[1760221967052,5.47936828,111230.0,111220.0,0.00108934]
[1760221967665,1.28410028,111230.0,111220.0,0.00108934]
[1760221967882,4.95381066,111230.0,111220.0,0.00108934]
[1760221968093,4.35079553,111230.0,111220.0,0.00108934]
[1760221968304,4.70683903,111230.0,111220.0,0.00108934]
[1760221968521,4.36157662,111230.0,111220.0,0.00108934]
[1760221968730,4.67733584,111230.0,111220.0,0.00108934]
[1760221969204,4.76705518,111230.0,111220.0,0.00108934]
[1760221969430,5.24682514,111230.0,111220.0,0.00108934]
[1760221969635,5.27137917,111230.0,111220.0,0.00108934]
[1760221970055,5.30253107,111230.0,111220.0,0.00108934]
[1760221970260,5.30153107,111230.0,111220.0,0.00108934]
[1760221970669,5.30253107,111230.0,111220.0,0.00108934]
[1760221971021,5.30353107,111230.0,111220.0,0.00108934]
[1760221971542,5.27805783,111230.0,111220.0,0.00108934]
[1760221971740,5.30226784,111230.0,111220.0,0.00108934]
[1760221971967,5.31034871,111230.0,111220.0,0.00108934]
[1760221972163,4.85473874,111230.0,111220.0,0.00108934]
[1760221972323,5.27806189,111230.0,111220.0,0.00108934]
[1760221972761,1.14759289,111230.0,111220.0,0.00108934]
[1760221973031,1.17991454,111230.0,111220.0,0.00108934]
[1760221973268,5.31038354,111230.0,111220.0,0.00108934]
[1760221973888,1.1556697,111230.0,111220.0,0.00108934]
[1760221974154,5.2861387,111230.0,111220.0,0.00108934]
[1760221975284,1.17991666,111230.0,111220.0,0.00108934]
[1760221975507,5.31038566,111230.0,111220.0,0.00108934]
[1760221975728,1.17991666,111230.0,111220.0,0.00108934]
[1760221976254,5.31038566,111230.0,111220.0,0.00108934]
[1760221976653,1.17991666,111230.0,111220.0,0.00108934]
[1760221976870,5.31038566,111230.0,111220.0,0.00108934]
[1760221977066,5.2861387,111230.0,111220.0,0.00108934]
[1760221977305,5.31038942,111230.0,111220.0,0.00108934]
[1760221977484,5.2861387,111230.0,111220.0,0.00108934]
[1760221977618,1.1556697,111230.0,111220.0,0.00108934]
[1760221977823,1.17992361,111230.0,111220.0,0.00108934]
[1760221978027,5.31039261,111230.0,111220.0,0.00108934]
[1760221978338,5.25381705,111230.0,111220.0,0.00108934]
[1760221979696,1.12334805,111230.0,111220.0,0.00108934]
[1760221979900,5.28616229,111230.0,111220.0,0.00108934]
[1760221980257,1.18096328,111230.0,111220.0,0.00108934]
[1760221980471,5.43278745,111230.0,111220.0,0.00108934]
[1760221980683,5.40616886,111230.0,111220.0,0.00108934]
[1760221980921,1.27569986,111230.0,111220.0,0.00108934]
[1760221981122,5.40616886,111230.0,111220.0,0.00108934]
[1760221981556,1.27569986,111230.0,111220.0,0.00108934]
[1760221981764,5.40616886,111230.0,111220.0,0.00108934]
[1760221981961,1.27569986,111230.0,111220.0,0.00108934]
[1760221982123,5.40616886,111230.0,111220.0,0.00108934]
[1760221982527,5.38195885,111230.0,111220.0,0.00108934]
[1760221982724,5.38195885,111230.0,111190.0,0.07162362]
[1760221982725,4.65032511,111200.0,111190.0,0.07162362]
[1760221983021,5.16643801,111200.0,111190.0,0.07177431]
[1760221983399,4.71082804,111200.0,111190.0,0.0028775]
[1760221983624,4.49753527,111200.0,111190.0,0.18274979]
[1760221983779,0.35940302,111200.0,111190.0,0.22864979]
[1760221983981,0.34,111200.0,111190.0,0.22864979]
[1760221984226,0.341,111200.0,111190.0,0.22864979]
[1760221984654,0.342,111200.0,111190.0,0.22864979]
[1760221984864,0.3798,111200.0,111190.0,0.18274979]
[1760221985507,0.3788,111200.0,111190.0,0.18274979]
[1760221985718,0.3798,111200.0,111190.0,0.20892979]
[1760221985923,0.3788,111200.0,111190.0,0.20892979]
[1760221986134,0.3778,111200.0,111190.0,0.20892979]
[1760221986550,0.3778,111200.0,111190.0,0.26631979]
[1760221987196,0.0378,111200.0,111190.0,0.26631979]
[1760221987836,0.0378,111200.0,111190.0,0.72192976]
[1760221988900,0.0378,111200.0,111190.0,0.26631979]
[1760221989368,0.0378,111200.0,111190.0,0.26731979]
[1760221989999,0.0378,111200.0,111190.0,0.26831979]
[1760221991165,0.0378,111200.0,111190.0,0.23064979]
[1760221991573,0.0378,111200.0,111190.0,0.26831979]
[1760221997325,0.0378,111200.0,111190.0,0.53701979]
[1760222001548,0.0378,111200.0,111190.0,0.89819799]
[1760222001747,0.0378,111200.0,111190.0,1.16689799]
[1760222002049,0.0378,111200.0,111190.0,0.89819799]
[1760222003276,0.0378,111200.0,111190.0,0.26831979]
[1760222003568,0.0378,111200.0,111190.0,0.89819799]
[1760222007165,0.0378,111200.0,111190.0,0.26831979]
[1760222007372,0.0378,111200.0,111190.0,0.89819799]
[1760222008136,0.34,111230.0,111220.0,0.17982377]
[1760222008340,0.0378,111230.0,111220.0,0.26339377]
[1760222008710,0.0378,111230.0,111220.0,0.26435906]
[1760222009452,0.0388,111230.0,111220.0,0.26435906]
[1760222010031,0.0378,111230.0,111220.0,0.26435906]
[1760222011712,0.0378,111230.0,111220.0,0.26535906]
[1760222013310,4.130469,111250.0,111240.0,0.17979144]
[1760222013515,0.0378,111250.0,111240.0,0.17979144]
[1760222013719,0.0378,111250.0,111240.0,0.20533144]
[1760222014470,0.03785023,111250.0,111240.0,0.17979144]
[1760222015963,0.03385023,111250.0,111240.0,0.17979144]
[1760222019099,0.03443698,111250.0,111240.0,0.17979144]
[1760222020081,0.03443698,111250.0,111240.0,0.20533144]
[1760222021985,0.03443698,111250.0,111240.0,0.17979144]
[1760222022341,0.04284753,111250.0,111240.0,0.17979144]
[1760222022952,0.04284753,111250.0,111240.0,0.20533144]
[1760222023266,0.03443698,111250.0,111240.0,0.20533144]
[1760222023574,0.47016865,111250.0,111240.0,0.17979144]
[1760222023775,0.062215,111250.0,111240.0,0.17979144]
[1760222024124,0.04284791,111250.0,111240.0,0.22205144]
[1760222025361,0.38284791,111250.0,111240.0,0.22205144]
[1760222025567,0.37443698,111250.0,111240.0,0.26105144]
[1760222026336,0.3828504,111250.0,111240.0,0.26105144]
[1760222026529,0.3828504,111250.0,111240.0,0.22205144]
[1760222026728,0.3828504,111250.0,111240.0,0.19829144]
[1760222026930,0.3828504,111250.0,111240.0,0.22205144]
[1760222028620,0.3828504,111250.0,111240.0,0.17979144]
[1760222028799,0.89889048,111250.0,111240.0,0.17979144]
[1760222029004,0.91825757,111250.0,111240.0,0.17979144]
[1760222029349,0.93509608,111250.0,111240.0,0.17979144]
[1760222030488,0.84637674,111250.0,111240.0,0.17979144]
[1760222030697,0.84637674,111250.0,111240.0,0.20355144]
[1760222031125,0.419056,111250.0,111240.0,0.20355144]
[1760222031315,0.39968891,111250.0,111240.0,0.26105144]
[1760222032041,0.06305193,111250.0,111240.0,0.26105144]
[1760222037919,0.11734349,111250.0,111240.0,0.22205144]
[1760222038108,0.11734349,111250.0,111240.0,0.26105144]
[1760222038336,0.06305193,111250.0,111240.0,0.26105144]
[1760222038512,0.04621342,111250.0,111240.0,0.68837218]
[1760222038969,0.04621342,111250.0,111240.0,0.26105144]
[1760222039177,0.04621342,111250.0,111240.0,0.68837218]
[1760222039576,0.04621342,111250.0,111240.0,0.26105144]
[1760222040659,0.0378,111250.0,111240.0,0.26105144]
[1760222041108,0.04623415,111250.0,111240.0,0.26105144]
[1760222041447,0.0378,111250.0,111240.0,0.26105144]
[1760222042797,0.04623199,111250.0,111240.0,0.17979144]
[1760222043000,0.04623199,111250.0,111240.0,0.20434144]
[1760222043204,0.0378,111250.0,111240.0,0.26037144]
[1760222043673,0.0378,111250.0,111240.0,0.68756386]
[1760222044408,0.0378,111250.0,111240.0,0.26037144]
[1760222044761,0.0378,111250.0,111240.0,0.52907144]
[1760222046176,0.0378,111250.0,111240.0,0.95626386]
[1760222049666,0.0378,111250.0,111240.0,1.49004016]
[1760222052869,0.0378,111250.0,111240.0,1.49104016]
[1760222054244,0.0378,111250.0,111240.0,1.0105558]
[1760222054594,0.0378,111250.0,111240.0,1.0115558]
[1760222055569,0.0378,111250.0,111240.0,0.53107144]
[1760222055771,0.0378,111250.0,111240.0,1.0115558]
[1760222061717,0.0378,111250.0,111240.0,1.06271748]
[1760222061958,0.0378,111250.0,111240.0,1.0115558]
[1760222062163,0.0378,111250.0,111240.0,1.49204016]
[1760222068048,0.0378,111250.0,111240.0,1.0115558]
[1760222068479,0.0378,111250.0,111240.0,0.53107144]
[1760222068619,0.0378,111250.0,111240.0,1.49204016]
[1760222070781,0.0378,111250.0,111240.0,0.53107144]
[1760222070989,0.0378,111250.0,111240.0,1.0115558]
[1760222078488,0.0378,111250.0,111240.0,1.49204016]
[1760222080176,0.0378,111250.0,111240.0,1.0115558]
[1760222080359,0.0378,111250.0,111240.0,1.49204016]
[1760222080820,0.0378,111250.0,111240.0,0.53107144]
[1760222081043,0.0378,111250.0,111240.0,1.49204016]
[1760222081559,0.0378,111250.0,111240.0,0.53107144]
[1760222081753,0.0378,111250.0,111240.0,1.0115558]
[1760222084255,0.48965092,111270.0,111260.0,0.17975912]
[1760222084449,0.52795328,111270.0,111260.0,0.44845912]
[1760222084816,0.5291265,111270.0,111260.0,0.44845912]
[1760222085217,0.5485555,111270.0,111260.0,0.44845912]
[1760222085697,0.5485555,111270.0,111260.0,0.47168912]
[1760222085898,0.5291265,111270.0,111260.0,0.47168912]
[1760222086056,0.5291265,111270.0,111260.0,0.44845912]
[1760222086257,0.54855563,111270.0,111260.0,0.44845912]
[1760222087295,0.54855563,111270.0,111260.0,0.47168912]
[1760222087499,0.06807127,111270.0,111260.0,0.48989912]
[1760222087818,0.5291265,111270.0,111260.0,0.48989912]
[1760222088025,0.54855563,111270.0,111260.0,0.48989912]
[1760222093039,0.06807127,111270.0,111260.0,0.48989912]
[1760222093238,0.5291265,111270.0,111260.0,0.52648912]
[1760222093474,0.54855563,111270.0,111260.0,0.52648912]
[1760222093848,0.06807127,111270.0,111260.0,0.52648912]
[1760222094045,0.04864214,111270.0,111260.0,0.73827348]
[1760222095215,0.04864214,111270.0,111260.0,0.25778912]
[1760222095452,0.04864214,111270.0,111260.0,0.73827348]
[1760222095864,0.04864214,111270.0,111260.0,0.25778912]
[1760222096037,0.04864214,111270.0,111260.0,0.73827348]
[1760222096411,0.04864214,111270.0,111260.0,0.25778912]
[1760222096635,0.04864214,111270.0,111260.0,0.73827348]
[1760222097355,0.03947558,111270.0,111260.0,0.73827348]
[1760222098183,0.03947558,111270.0,111260.0,0.25778912]
[1760222098385,0.03947558,111270.0,111260.0,0.73827348]
[1760222101220,0.03947558,111270.0,111260.0,1.00697348]
[1760222102874,0.03947558,111270.0,111260.0,0.52648912]
[1760222103078,0.08103316,111270.0,111260.0,1.00697348]
[1760222104162,0.08103316,111270.0,111260.0,0.52648912]
[1760222104620,0.03947558,111270.0,111260.0,0.52648912]
[1760222104849,0.03947558,111270.0,111260.0,1.00697348]
[1760222105488,0.5273391,111280.0,111270.0,0.17974296]
[1760222105704,0.5273391,111280.0,111270.0,0.2232634]
[1760222106152,0.04744124,111280.0,111270.0,0.2232634]
[1760222106384,0.5279256,111280.0,111270.0,0.2590834]
[1760222107064,0.04744124,111280.0,111270.0,0.2590834]
[1760222107882,0.07448426,111280.0,111270.0,0.2590834]
[1760222110663,0.0378,111280.0,111270.0,0.2590834]
[1760222111081,0.06484226,111280.0,111270.0,0.00015044]
[1760222111280,0.13081894,111280.0,111270.0,0.2046834]
[1760222111485,0.07402281,111280.0,111270.0,0.2232634]
[1760222111989,0.07402281,111280.0,111270.0,0.2590834]
[1760222113117,0.07402281,111280.0,111270.0,0.5277834]
[1760222118394,0.0378,111280.0,111270.0,0.5277834]
[1760222118610,0.0378,111280.0,111270.0,0.71316953]
[1760222120882,0.0378,111280.0,111270.0,0.71416953]
[1760222121682,0.0378,111280.0,111270.0,0.71516953]
[1760222122942,0.0378,111280.0,111270.0,0.28812261]
[1760222123294,0.0378,111280.0,111270.0,0.71516953]
[1760222124318,0.0378,111280.0,111270.0,0.65827451]
[1760222124495,0.0045,111300.0,111290.0,0.60675758]
[1760222124697,0.0045,111300.0,111290.0,0.62533758]
[1760222124913,0.0045,111300.0,111290.0,0.68594758]
[1760222125104,0.00567275,111300.0,111290.0,0.71297946]
[1760222125291,0.00567275,111300.0,111290.0,0.28593254]
[1760222125495,0.00567275,111300.0,111290.0,0.71297946]
[1760222126493,0.00567275,111300.0,111290.0,0.28593254]
[1760222126637,0.00567275,111300.0,111290.0,0.71297946]
[1760222126834,0.00567275,111300.0,111290.0,0.71397946]
[1760222128030,0.00567275,111300.0,111290.0,0.71497946]
[1760222131541,0.03776,111330.0,111320.0,0.17966223]
[1760222131784,0.03776,111330.0,111320.0,0.26028223]
[1760222132005,0.06479181,111330.0,111320.0,0.26028223]
[1760222132879,0.06479181,111330.0,111320.0,0.26043267]
[1760222133055,0.06479181,111330.0,111320.0,0.22228267]
[1760222133283,0.06479181,111330.0,111320.0,0.26043267]
[1760222134417,0.03776,111330.0,111320.0,0.68747959]
[1760222134828,0.03776,111330.0,111320.0,0.71450531]
[1760222135034,0.03776,111330.0,111320.0,0.28745839]
[1760222135252,0.02722579,111350.0,111340.0,0.17962996]
[1760222135463,0.0002,111350.0,111340.0,0.72322312]
[1760222136086,0.0002,111350.0,111340.0,0.29977882]
[1760222136285,0.0002,111350.0,111340.0,0.72682574]
[1760222136814,0.0002,111350.0,111340.0,0.6908995]
[1760222138018,0.0002,111350.0,111340.0,0.6918995]
[1760222138213,0.00313028,111350.0,111340.0,0.6928995]
[1760222140190,0.0002,111360.0,111350.0,0.34]
[1760222140407,0.0002,111370.0,111360.0,0.5195977]
[1760222140609,0.0002,111420.0,111370.0,0.54973347]
[1760222140806,0.00855847,111420.0,111410.0,0.64903401]
[1760222141032,0.04631847,111420.0,111410.0,0.64903401]
[1760222141249,0.04631847,111420.0,111410.0,0.2871398]
[1760222141495,0.04631847,111420.0,111410.0,0.71418672]
[1760222141625,0.04680891,111420.0,111410.0,0.71418672]
[1760222142444,0.03846298,111420.0,111410.0,0.71418672]
[1760222143842,0.03846298,111420.0,111410.0,0.74433862]
[1760222144468,0.03846298,111420.0,111410.0,1.08533862]
[1760222144675,0.03846298,111420.0,111410.0,1.08633862]
[1760222145301,0.03846298,111420.0,111410.0,1.08533862]
[1760222145434,0.03846298,111420.0,111410.0,1.28533358]
[1760222145889,0.03846298,111420.0,111410.0,1.28633358]
[1760222147342,0.03846298,111420.0,111410.0,1.25618168]
[1760222147588,0.03846298,111420.0,111410.0,1.28633358]
[1760222150907,0.04256188,111420.0,111410.0,1.28633358]
[1760222151562,0.04256188,111420.0,111410.0,0.6592917]
[1760222151785,0.04256188,111420.0,111410.0,1.28633358]
[1760222152382,0.04256188,111420.0,111410.0,0.2891398]
[1760222152584,0.06732188,111420.0,111410.0,0.02900271]
[1760222152792,0.08115188,111420.0,111410.0,0.02900271]
[1760222153012,0.08115188,111420.0,111410.0,0.04546]
[1760222153224,0.21722098,111420.0,111410.0,0.04546]
[1760222153470,5.21722098,111420.0,111410.0,0.002]
[1760222153639,0.43131097,111410.0,111390.0,0.01856]
[1760222153859,5.0,111400.0,111390.0,0.07002029]
[1760222154752,5.0,111400.0,111390.0,0.04301]
[1760222155199,5.0,111400.0,111390.0,0.04401]
[1760222155434,0.17953321,111400.0,111380.0,0.11719391]
[1760222155674,0.18849682,111410.0,111390.0,0.02445]
[1760222155900,5.0,111400.0,111390.0,0.04346]
[1760222156109,5.0,111400.0,111390.0,0.08236]
[1760222158022,0.17952273,111410.0,111390.0,0.08236]
[1760222158325,0.18783418,111410.0,111390.0,0.08236]
[1760222158951,0.00831145,111410.0,111400.0,0.07586332]
[1760222159147,0.22619602,111420.0,111400.0,0.26189321]
[1760222159148,0.38603505,111420.0,111400.0,0.26189321]
[1760222159348,0.38603505,111420.0,111410.0,0.05791]
[1760222159554,0.56553603,111420.0,111410.0,0.04346]
[1760222159961,4.880414,111410.0,111400.0,0.01901]
[1760222160159,4.880414,111410.0,111400.0,0.04346]
[1760222160317,0.55722098,111420.0,111400.0,0.26189248]
[1760222160517,0.56554327,111420.0,111410.0,0.01901]
[1760222160718,0.56554327,111420.0,111400.0,0.23744248]
[1760222161021,0.56654327,111420.0,111400.0,0.05791]
[1760222161220,0.64057915,111420.0,111400.0,0.05791]
[1760222161389,0.56554327,111420.0,111410.0,0.02445]
[1760222161635,0.56654327,111420.0,111410.0,0.04214]
[1760222162377,0.38704229,111420.0,111410.0,0.04214]
[1760222162577,0.38704229,111420.0,111410.0,0.07947]
[1760222162796,0.38704229,111420.0,111410.0,0.04214]
[1760222163003,0.41305008,111420.0,111410.0,0.04214]
[1760222163416,0.17951709,111410.0,111400.0,0.01901]
[1760222163588,0.58522877,111420.0,111410.0,0.04321]
[1760222163803,0.59357039,111420.0,111410.0,0.04321]
[1760222164207,0.17951709,111410.0,111390.0,0.08334886]
[1760222164359,0.18785871,111410.0,111400.0,0.02552]
[1760222164564,0.18785871,111410.0,111390.0,0.15497248]
[1760222165362,5.05994721,111400.0,111390.0,0.02700886]
[1760222165564,0.18787483,111400.0,111380.0,0.01856]
[1760222165740,0.18787483,111400.0,111380.0,0.35160204]
[1760222165967,0.18787483,111400.0,111390.0,0.00213445]
[1760222166102,6.03533071,111400.0,111390.0,0.00213445]
[1760222166302,6.12405005,111400.0,111390.0,0.00213445]
[1760222166513,5.58424152,111400.0,111390.0,0.00213445]
[1760222166727,6.2112834,111400.0,111390.0,0.00213445]
[1760222166893,6.18704631,111400.0,111390.0,0.00213445]
[1760222167544,6.18804631,111400.0,111390.0,0.00213445]
[1760222167948,6.18526737,111400.0,111390.0,0.00213445]
[1760222168466,6.21847429,111400.0,111390.0,0.00213445]
[1760222169531,5.59143241,111400.0,111390.0,0.00213445]
[1760222169742,6.21847429,111400.0,111390.0,0.00213445]
[1760222169865,0.71101841,111400.0,111390.0,0.00213445]
[1760222170073,6.21847429,111400.0,111390.0,0.00213445]
[1760222170317,1.33806029,111400.0,111390.0,0.00213445]
[1760222170518,6.21847429,111400.0,111390.0,0.00213445]
[1760222170926,1.33806029,111400.0,111390.0,0.00213445]
[1760222171385,6.21847429,111400.0,111390.0,0.00213445]
[1760222171596,1.1652094,111400.0,111390.0,0.00213445]
[1760222171938,6.0456234,111400.0,111390.0,0.00213445]
[1760222172565,6.0757753,111400.0,111390.0,0.00213445]
[1760222172817,6.55678397,111400.0,111390.0,0.00213445]
[1760222173036,6.58038497,111400.0,111390.0,0.00213445]
[1760222174755,6.12619398,111400.0,111390.0,0.00213445]
[1760222174959,1.24577998,111400.0,111390.0,0.00213445]
[1760222175387,6.58038497,111400.0,111390.0,0.00213445]
[1760222176007,6.65091697,111400.0,111390.0,0.00213445]
[1760222176423,6.14573515,111400.0,111390.0,0.00213445]
[1760222176663,6.17783529,111400.0,111390.0,0.00213445]
[1760222177652,6.63202628,111400.0,111390.0,0.00213445]
[1760222178008,1.75161228,111400.0,111390.0,0.00213445]
[1760222178221,6.59992614,111400.0,111390.0,0.00213445]
[1760222178896,1.71951214,111400.0,111390.0,0.00213445]
[1760222179082,6.59992614,111400.0,111390.0,0.00213445]
[1760222179338,5.55997945,111380.0,111370.0,0.07162362]
[1760222179538,5.67132086,111380.0,111370.0,0.07162362]
[1760222179966,4.880414,111360.0,111350.0,0.08931362]
[1760222180135,0.18793932,111360.0,111350.0,0.11483362]
[1760222180359,0.18793932,111360.0,111340.0,0.05502]
[1760222180561,0.18793932,111360.0,111350.0,0.02602298]
[1760222180764,0.22569932,111360.0,111350.0,0.00050298]
[1760222181088,0.22569932,111360.0,111350.0,0.02602298]
[1760222181882,0.24201112,111360.0,111350.0,0.02602298]
[1760222182086,0.25877646,111360.0,111350.0,0.02602298]
[1760222182295,0.25881751,111360.0,111350.0,0.02602298]
[1760222182499,0.25881751,111360.0,111350.0,0.00050298]
[1760222183158,0.31270807,111360.0,111350.0,0.02602298]
[1760222183375,0.07921981,111360.0,111350.0,0.08104298]
[1760222183738,0.06290801,111360.0,111350.0,0.08104298]
[1760222184305,0.06290801,111360.0,111350.0,0.04371298]
[1760222184306,0.25870883,111360.0,111350.0,0.04371298]
[1760222184428,0.25870883,111360.0,111350.0,0.00050298]
[1760222184640,0.79596663,111360.0,111350.0,0.00050298]
[1760222184859,0.71598548,111360.0,111350.0,0.00050298]
[1760222185070,0.71598548,111360.0,111350.0,0.00284633]
[1760222185519,0.56084197,111360.0,111350.0,0.00284633]
[1760222185734,0.05704878,111360.0,111350.0,0.02836633]
[1760222185949,0.03776,111360.0,111350.0,0.08338633]
[1760222187340,0.2173577,111360.0,111350.0,0.04605633]
[1760222187521,0.2173577,111360.0,111350.0,0.08338633]
[1760222187728,0.2173577,111360.0,111350.0,0.04605633]
[1760222188375,0.03776,111360.0,111350.0,0.04605633]
[1760222188602,0.2173577,111360.0,111350.0,0.04605633]
[1760222192049,0.03776,111360.0,111350.0,0.04605633]
[1760222192914,0.03776,111360.0,111350.0,0.2893656]
[1760222193384,0.03776,111360.0,111350.0,0.74355659]
[1760222193594,0.03776,111360.0,111350.0,0.6293656]
[1760222193809,0.03776,111360.0,111350.0,1.08355659]
[1760222195585,0.03776,111360.0,111350.0,1.05564115]
[1760222196259,0.03776,111360.0,111350.0,0.60145016]
[1760222197351,0.03776,111360.0,111350.0,1.05564115]
[1760222199268,0.03776,111360.0,111350.0,1.08579305]
[1760222205059,0.03776,111360.0,111350.0,1.08679305]
[1760222205245,0.03776,111360.0,111350.0,1.18779304]
[1760222205906,0.03776,111390.0,111380.0,0.17956545]
[1760222206104,0.03776,111390.0,111380.0,0.26001545]
[1760222206774,0.03776,111390.0,111380.0,0.71420644]
[1760222208733,0.03776,111390.0,111380.0,0.26001545]
[1760222209643,0.03776,111390.0,111380.0,0.71420644]
[1760222210981,0.0009634,111400.0,111390.0,0.54970123]
[1760222211192,0.04613954,111440.0,111430.0,0.17948487]
[1760222211409,0.04613954,111440.0,111430.0,0.25993487]
[1760222211614,0.03776,111440.0,111430.0,0.25993487]
[1760222212205,0.03776,111440.0,111430.0,0.26008531]
[1760222212857,0.7280535,111440.0,111430.0,0.00015044]
[1760222213068,0.49195099,111440.0,111430.0,0.02559044]
[1760222213271,0.03776,111440.0,111430.0,0.04446044]
[1760222213668,0.03776,111440.0,111430.0,0.26008531]
[1760222214695,0.03776,111440.0,111430.0,0.08060044]
[1760222214897,0.49195099,111440.0,111430.0,0.00015044]
[1760222215136,0.67141976,111440.0,111430.0,0.00015044]
[1760222215342,1.04157166,111440.0,111430.0,0.00015044]
[1760222215554,5.9479765,111440.0,111430.0,0.00015044]
[1760222215777,5.96725389,111440.0,111430.0,0.00015044]
[1760222215999,6.10517366,111440.0,111430.0,0.00015044]
[1760222216761,6.0815241,111440.0,111430.0,0.00015044]
[1760222217163,6.0825241,111440.0,111430.0,0.00015044]
[1760222217418,5.99580476,111440.0,111430.0,0.00015044]
[1760222218297,5.54161377,111440.0,111430.0,0.00015044]
[1760222218492,5.94055608,111440.0,111430.0,0.00015044]
[1760222218960,5.94155608,111440.0,111430.0,0.00015044]
[1760222219332,6.02927542,111440.0,111430.0,0.00015044]
[1760222219650,6.03027542,111440.0,111430.0,0.00015044]
[1760222219986,6.02727542,111440.0,111430.0,0.00015044]
[1760222220185,6.02827542,111440.0,111430.0,0.00015044]
[1760222220397,6.02927542,111440.0,111430.0,0.00015044]
[1760222220612,6.02827542,111440.0,111430.0,0.00015044]
[1760222220808,6.02927542,111440.0,111430.0,0.00015044]
[1760222221525,6.0533722,111440.0,111430.0,0.00015044]
[1760222221874,5.62465286,111440.0,111430.0,0.02460044]
[1760222222078,5.14636509,111440.0,111430.0,0.02460044]
[1760222222282,5.49372585,111440.0,111430.0,0.02460044]
[1760222222478,5.46962907,111440.0,111430.0,0.02460044]
[1760222222713,5.12962907,111440.0,111430.0,0.00015044]
[1760222222940,5.46962907,111440.0,111430.0,0.00015044]
[1760222223189,0.39046891,111440.0,111430.0,0.09701892]
[1760222224265,0.38946891,111440.0,111430.0,0.09701892]
[1760222224475,0.61082632,111440.0,111430.0,0.00015044]
[1760222224676,1.06501731,111440.0,111430.0,0.00015044]
[1760222225059,5.96475112,111440.0,111430.0,0.00015044]
[1760222225261,5.9815222,111440.0,111430.0,0.00015044]
[1760222225731,5.92186248,111440.0,111430.0,0.00015044]
[1760222226641,5.93863699,111440.0,111430.0,0.00015044]
[1760222227076,5.92186248,111440.0,111430.0,0.02460044]
[1760222227288,0.40778872,111440.0,111430.0,0.04280044]
[1760222227500,0.38846891,111440.0,111430.0,0.04280044]
[1760222227738,0.04846891,111440.0,111430.0,0.31150044]
[1760222228559,0.22793768,111440.0,111430.0,0.31150044]
[1760222228974,0.22793768,111440.0,111430.0,0.28705044]
[1760222229182,0.22793768,111440.0,111430.0,0.29330044]
[1760222229392,0.22793768,111440.0,111430.0,0.31150044]
[1760222230026,5.5965577,111440.0,111430.0,0.26885044]
[1760222230224,5.61587751,111440.0,111430.0,0.26885044]
[1760222230671,5.63265611,111440.0,111430.0,0.26885044]
[1760222231305,5.97265611,111440.0,111430.0,0.26885044]
[1760222231511,6.02879885,111440.0,111430.0,0.00015044]
[1760222231714,6.05289563,111440.0,111430.0,0.00015044]
[1760222231844,1.20461067,111440.0,111430.0,0.00015044]
[1760222232053,6.08502467,111440.0,111430.0,0.00015044]
[1760222232243,6.06092789,111440.0,111430.0,0.00015044]
[1760222232845,6.06192789,111440.0,111430.0,0.00015044]
[1760222233200,5.98916067,111440.0,111430.0,0.00015044]
[1760222233416,6.02140418,111440.0,111430.0,0.02460044]
[1760222233613,0.6624665,111440.0,111430.0,0.00015044]
[1760222233812,0.63022299,111440.0,111430.0,0.02460044]
[1760222234267,5.51063699,111440.0,111430.0,0.00015044]
[1760222234466,5.59835633,111440.0,111430.0,0.00015044]
[1760222234681,5.59735633,111440.0,111430.0,0.00015044]
[1760222234912,6.22577649,111440.0,111430.0,0.00015044]
[1760222235140,6.22677649,111440.0,111430.0,0.00015044]
[1760222235344,6.28501084,111440.0,111430.0,0.00015044]
[1760222235556,1.37235333,111440.0,111430.0,0.00015044]
[1760222235865,6.06254965,111440.0,111430.0,0.00015044]
[1760222236067,6.24201842,111440.0,111430.0,0.00015044]
[1760222236603,6.21602758,111440.0,111430.0,0.00015044]
[1760222237023,1.33561358,111440.0,111430.0,0.00015044]
[1760222237225,6.21602758,111440.0,111430.0,0.00015044]
[1760222237426,6.12730824,111440.0,111430.0,0.00015044]
[1760222239478,5.49988808,111440.0,111430.0,0.00015044]
[1760222239681,6.12730824,111440.0,111430.0,0.00015044]
[1760222240744,5.49988808,111440.0,111430.0,0.00015044]
[1760222240973,5.49992058,111440.0,111430.0,0.00015044]
[1760222241176,5.58863992,111440.0,111430.0,0.00015044]